fUSD/lending_fUSD_20260513
["ID","MTS","AMOUNT","RATE_DAILY","PERIOD"]
[422193309,1778676636000,-500.0,0.00014504,2]
[422193308,1778676636000,-350.0,0.00014503,2]
[422193299,1778676636000,-5000.5132021,0.00014302,2]
[422193313,1778676636000,-5000.5132021,0.00014601,2]
[422193311,1778676636000,-150.0,0.00014558,2]
[422193315,1778676636000,-150.0,0.00014612,2]
[422193312,1778676636000,-433.0,0.00014597,2]
[422193314,1778676636000,-2138.29083571,0.00014611,2]
[422193316,1778676636000,-150.0,0.00014665,2]
[422193318,1778676636000,-398.0,0.00014749,2]
[422193317,1778676636000,-6919.6064434,0.00014667,2]
[422193310,1778676636000,-1180.0,0.00014504,5]
[422193366,1778676637000,-500.0,0.00014899,2]
[422193361,1778676637000,-412.3793414,0.00014899,2]
[422193364,1778676637000,-470.45094431,0.00014899,2]
[422193359,1778676637000,-613.25933134,0.00014899,2]
[422193370,1778676637000,-7485.78885094,0.000149,3]
[422193371,1778676637000,-1939.06989098,0.000149,3]
[422193356,1778676637000,-315.31947527,0.00014899,2]
[422193358,1778676637000,-500.0,0.00014899,2]
[422193357,1778676637000,-84.90797443,0.00014899,2]
[422193355,1778676637000,-272.00339929,0.00014899,2]
[422193353,1778676637000,-124.77664023,0.00014899,2]
[422193354,1778676637000,-500.0,0.00014899,2]
[422193362,1778676637000,-500.0,0.00014899,2]
[422193360,1778676637000,-500.0,0.00014899,2]
[422193369,1778676637000,-1252.14267284,0.000149,3]
[422193377,1778676637000,-5000.5132021,0.000149,2]
[422193363,1778676637000,-29.54905569,0.00014899,2]
[422193384,1778676637000,-151.0,0.000149,2]
[422193382,1778676637000,-778.276246,0.000149,2]
[422193383,1778676637000,-778.276246,0.000149,2]
[422193381,1778676637000,-778.276246,0.000149,2]
[422193373,1778676637000,-11225.38495231,0.000149,3]
[422193378,1778676637000,-2138.29083571,0.000149,2]
[422193379,1778676637000,-286.98103315,0.000149,2]
[422193375,1778676637000,-12404.07809821,0.000149,3]
[422193374,1778676637000,-1370.53694948,0.000149,3]
[422193376,1778676637000,-25000.0,0.000149,3]
[422193372,1778676637000,-14322.99858524,0.000149,3]
[422193365,1778676637000,-500.0,0.00014899,2]
[422193368,1778676637000,-269.78233509,0.000149,2]
[422193380,1778676637000,-778.276246,0.000149,2]
[422193367,1778676637000,-1243.0,0.000149,5]
[422193387,1778676638000,-158.137345,0.000149,2]
[422193389,1778676638000,-2673.04060536,0.000149,2]
[422193386,1778676638000,-151.0,0.000149,2]
[422193393,1778676638000,-151.0,0.000149,2]
[422193385,1778676638000,-151.0,0.000149,2]
[422193391,1778676638000,-9272.02821042,0.000149,3]
[422193410,1778676638000,-319.1,0.000149,2]
[422193408,1778676638000,-18305.95846211,0.000149,2]
[422193395,1778676638000,-185.466806,0.000149,2]
[422193401,1778676638000,-185.466806,0.000149,2]
[422193397,1778676638000,-185.466806,0.000149,2]
[422193399,1778676638000,-151.0,0.000149,2]
[422193404,1778676638000,-151.0,0.000149,2]
[422193406,1778676638000,-185.466806,0.000149,2]
[422193417,1778676639000,-633.08955673,0.000149,2]
[422193416,1778676639000,-1040.456,0.000149,2]
[422193418,1778676640000,-1325.46,0.00013598,2]
[422193420,1778676640000,-572.4888352,0.00013598,2]
[422193421,1778676640000,-303.01116481,0.000149,2]
[422193422,1778676640000,-2261.99891123,0.000149,2]
[422193419,1778676640000,-1152.38968876,0.00013598,2]
[422193444,1778676642000,-327.18956,0.000149,2]
[422193443,1778676642000,-2659.00295399,0.000149,2]
[422193442,1778676642000,-297.50196979,0.000149,2]
[422193445,1778676643000,-2400.75,0.000149,2]
[422193466,1778676645000,-772.86827358,0.00013784,2]
[422193467,1778676645000,-857.88502153,0.00013784,2]
[422193468,1778676645000,-1419.58522885,0.00013784,2]
[422193470,1778676645000,-4337.62607563,0.000149,2]
[422193469,1778676645000,-767.709577,0.00014825,2]
[422193473,1778676646000,-363.90456801,0.000149,2]
[422193472,1778676646000,-1663.04519686,0.000149,2]
[422193471,1778676646000,-4444.59448117,0.000149,2]
[422193475,1778676646000,-213.44360599,0.000149,2]
[422193476,1778676646000,-125.9489338,0.000149,2]
[422193477,1778676646000,-809.8242552,0.000149,2]
[422193478,1778676646000,-935.773189,0.000149,2]
[422193479,1778676646000,-935.773189,0.000149,2]
[422193480,1778676646000,-923.51718055,0.000149,2]
[422193481,1778676646000,-290.72811285,0.00014908,2]
[422193474,1778676646000,-358.425015,0.000149,2]
[422193488,1778676646000,-247.47649437,0.00014986,2]
[422193485,1778676646000,-398.0,0.00014932,2]
[422193486,1778676646000,-398.0,0.00014956,2]
[422193487,1778676646000,-155.19326329,0.00014986,2]
[422193491,1778676646000,-150.00000001,0.00014986,2]
[422193490,1778676646000,-261.71745091,0.00014986,2]
[422193494,1778676646000,-275.53353916,0.0001499,2]
[422193489,1778676646000,-155.7928226,0.00014986,2]
[422193492,1778676646000,-925.99406024,0.00014989,2]
[422193493,1778676646000,-925.99406024,0.0001499,2]
[422193483,1778676646000,-210.68238258,0.00014925,2]
[422193553,1778676726000,100000.0,0.00027397,120]
[422193554,1778676883000,1363.0,0.00027397,120]
[422193556,1778677238000,152.0,0.00012351,7]
[422193557,1778677262000,152.0,0.00012326,7]
[422193558,1778677263000,152.0,0.00012326,7]
[422193591,1778677402000,-150.0,0.00013449,2]
[422193579,1778677402000,-292.29911912,0.000119,2]
[422193577,1778677402000,-278.17829665,0.000118,2]
[422193578,1778677402000,-300.0,0.00011899,2]
[422193580,1778677402000,-12352.02286847,0.000119,2]
[422193582,1778677402000,-2417.88822261,0.00011968,2]
[422193581,1778677402000,-171.0274432,0.000119,2]
[422193583,1778677402000,-152.0,0.00011968,2]
[422193584,1778677402000,-420.0,0.00013064,2]
[422193588,1778677402000,-185.08,0.0001334,2]
[422193587,1778677402000,-2000.0,0.00013317,2]
[422193586,1778677402000,-278.17829663,0.00013102,2]
[422193593,1778677402000,-1200.0,0.00013606,2]
[422193590,1778677402000,-514.44,0.00013384,2]
[422193598,1778677402000,-500.0,0.00013698,2]
[422193596,1778677402000,-4224.0,0.00013608,2]
[422193595,1778677402000,-1987.73,0.00013608,2]
[422193594,1778677402000,-187.0,0.00013607,2]
[422193599,1778677402000,-500.0,0.00013698,2]
[422193592,1778677402000,-152.0,0.00013582,2]
[422193585,1778677402000,-250.0,0.00013089,2]
[422193589,1778677402000,-200.0,0.0001334,2]
[422193597,1778677402000,-150.0,0.00013697,2]
[422193612,1778677403000,-500.0,0.00013789,2]
[422193620,1778677403000,-200.0,0.000142,5]
[422193618,1778677403000,-500.0,0.00014152,2]
[422193617,1778677403000,-250.0,0.00014,2]
[422193616,1778677403000,-12231.72675233,0.0001399,2]
[422193615,1778677403000,-37364.59791267,0.0001398,2]
[422193619,1778677403000,-500.0,0.00014152,2]
[422193614,1778677403000,-500.0,0.00013789,2]
[422193613,1778677403000,-639.98009813,0.00013789,2]
[422193609,1778677403000,-150.0,0.00013736,2]
[422193606,1778677403000,-548.94612977,0.00013698,2]
[422193610,1778677403000,-5000.0,0.00013788,2]
[422193607,1778677403000,-200.0,0.00013699,2]
[422193608,1778677403000,-214.91342137,0.00013701,2]
[422193604,1778677403000,-500.0,0.00013698,2]
[422193605,1778677403000,-500.0,0.00013698,2]
[422193602,1778677403000,-500.0,0.00013698,2]
[422193603,1778677403000,-500.0,0.00013698,2]
[422193601,1778677403000,-500.0,0.00013698,2]
[422193600,1778677403000,-500.0,0.00013698,2]
[422193621,1778677403000,-400.0,0.000143,5]
[422193611,1778677403000,-500.0,0.00013789,2]
[422193622,1778677403000,-587.0,0.00014343,2]
[422193638,1778677403000,-2000.0,0.000147,2]
[422193623,1778677403000,-600.0,0.000144,5]
[422193646,1778677403000,-150.0,0.00014725,2]
[422193643,1778677403000,-291.85352659,0.00014725,2]
[422193624,1778677403000,-800.0,0.000145,5]
[422193644,1778677403000,-150.0,0.00014725,2]
[422193641,1778677403000,-4850.82233519,0.00014722,2]
[422193642,1778677403000,-150.0,0.00014725,2]
[422193636,1778677403000,-200.0,0.000147,5]
[422193640,1778677403000,-2131.86885301,0.0001472,2]
[422193639,1778677403000,-4850.82233521,0.000147,2]
[422193637,1778677403000,-1800.73837474,0.000147,2]
[422193645,1778677403000,-150.0,0.00014725,2]
[422193633,1778677403000,-1946.57,0.00014685,2]
[422193634,1778677403000,-1000.0,0.00014699,2]
[422193625,1778677403000,-500.0,0.00014504,2]
[422193627,1778677403000,-9028.15,0.00014504,2]
[422193629,1778677403000,-58505.45,0.00014504,2]
[422193628,1778677403000,-991.65,0.00014504,2]
[422193626,1778677403000,-363.16,0.00014504,2]
[422193631,1778677403000,-1000.0,0.000146,5]
[422193632,1778677403000,-29049.1023,0.00014614,2]
[422193635,1778677403000,-10780.23497776,0.000147,2]
[422193630,1778677403000,-9999.99,0.00014504,2]
[422193664,1778677404000,-500.0,0.00014799,2]
[422193654,1778677404000,-2131.868853,0.0001478,2]
[422193660,1778677404000,-500.0,0.00014799,2]
[422193659,1778677404000,-14269.6101801,0.00014796,2]
[422193663,1778677404000,-500.0,0.00014799,2]
[422193661,1778677404000,-500.0,0.00014799,2]
[422193656,1778677404000,-1888.4798129,0.00014796,2]
[422193653,1778677404000,-4850.82233519,0.00014767,2]
[422193651,1778677404000,-4850.82233519,0.00014744,2]
[422193658,1778677404000,-1413.9311203,0.00014796,2]
[422193652,1778677404000,-2131.868853,0.0001476,2]
[422193655,1778677404000,-4850.82233519,0.00014789,2]
[422193650,1778677404000,-2131.868853,0.0001474,2]
[422193649,1778677404000,-238.38484813,0.00014725,2]
[422193648,1778677404000,-150.0,0.00014725,2]
[422193647,1778677404000,-150.0,0.00014725,2]
[422193662,1778677404000,-174.29952816,0.00014799,2]
[422193657,1778677404000,-1062.3382801,0.00014796,2]
[422193665,1778677404000,-500.0,0.00014799,2]
[422193679,1778677404000,-500.0,0.00014799,2]
[422193667,1778677404000,-377.51136467,0.00014799,2]
[422193666,1778677404000,-500.0,0.00014799,2]
[422193683,1778677404000,-200.0,0.000148,5]
[422193684,1778677404000,-4850.82233519,0.00014811,2]
[422193682,1778677404000,-2131.868853,0.000148,2]
[422193685,1778677404000,-2131.868853,0.0001482,2]
[422193680,1778677404000,-340.99515603,0.00014799,2]
[422193678,1778677404000,-500.0,0.00014799,2]
[422193675,1778677404000,-500.0,0.00014799,2]
[422193681,1778677404000,-148947.6528,0.000148,2]
[422193676,1778677404000,-500.0,0.00014799,2]
[422193674,1778677404000,-500.0,0.00014799,2]
[422193673,1778677404000,-500.0,0.00014799,2]
[422193672,1778677404000,-500.0,0.00014799,2]
[422193671,1778677404000,-500.0,0.00014799,2]
[422193668,1778677404000,-500.0,0.00014799,2]
[422193670,1778677404000,-500.0,0.00014799,2]
[422193669,1778677404000,-500.0,0.00014799,2]
[422193677,1778677404000,-568.95640432,0.00014799,2]
[422193699,1778677405000,-500.0,0.00014899,2]
[422193701,1778677405000,-2896.77459148,0.000149,2]
[422193702,1778677405000,-25000.0,0.000149,3]
[422193700,1778677405000,-539.56467018,0.000149,2]
[422193705,1778677405000,-1100.88376451,0.000149,2]
[422193704,1778677405000,-2131.868853,0.000149,2]
[422193706,1778677405000,-2287.75389297,0.000149,2]
[422193698,1778677405000,-500.0,0.00014889,2]
[422193703,1778677405000,-200.0,0.000149,5]
[422193697,1778677405000,-2287.75389297,0.00014885,2]
[422193688,1778677405000,-658.52873662,0.00014844,2]
[422193695,1778677405000,-2287.75389297,0.00014871,2]
[422193694,1778677405000,-2000.0,0.0001487,2]
[422193693,1778677405000,-2131.868853,0.0001486,2]
[422193691,1778677405000,-500.0,0.00014853,2]
[422193692,1778677405000,-2287.75389297,0.00014856,2]
[422193690,1778677405000,-200.0,0.00014853,2]
[422193689,1778677405000,-674.45507456,0.0001485,2]
[422193709,1778677405000,-4444.59448117,0.000149,2]
[422193686,1778677405000,-255.0,0.0001482,2]
[422193687,1778677405000,-2131.868853,0.0001484,2]
[422193696,1778677405000,-2131.868853,0.0001488,2]
[422193708,1778677405000,-3972.27252492,0.000149,2]
[422193707,1778677405000,-5534.4002,0.000149,2]
[422193710,1778677405000,-151.0,0.000149,2]
[422193712,1778677405000,-345.02222984,0.000149,2]
[422193732,1778677405000,-234.73193772,0.0001499,2]
[422193730,1778677405000,-151.0,0.0001499,2]
[422193731,1778677405000,-151.0,0.0001499,2]
[422193729,1778677405000,-234.73193772,0.0001499,2]
[422193728,1778677405000,-300.4541075,0.0001499,2]
[422193727,1778677405000,-300.4541075,0.0001499,2]
[422193725,1778677405000,-806.98550916,0.0001499,2]
[422193726,1778677405000,-300.4541075,0.0001499,2]
[422193724,1778677405000,-1000.0,0.0001499,2]
[422193723,1778677405000,-1000.0,0.0001499,2]
[422193733,1778677405000,-2000.0,0.0001499,2]
[422193721,1778677405000,-1000.0,0.0001499,2]
[422193719,1778677405000,-1000.0,0.0001499,2]
[422193720,1778677405000,-1000.0,0.0001499,2]
[422193718,1778677405000,-281.67832527,0.0001499,2]
[422193717,1778677405000,-2000.0,0.00014981,2]
[422193716,1778677405000,-2000.0,0.0001497,2]
[422193714,1778677405000,-2000.0,0.0001492,2]
[422193715,1778677405000,-1680.0,0.00014967,2]
[422193713,1778677405000,-151.0,0.000149,2]
[422193711,1778677405000,-151.0,0.000149,2]
[422193722,1778677405000,-1000.0,0.0001499,2]
[422193746,1778677406000,-500.0,0.00014999,2]
[422193748,1778677406000,-500.0,0.00014999,2]
[422193747,1778677406000,-500.0,0.00014999,2]
[422193753,1778677406000,-500.0,0.00014999,2]
[422193750,1778677406000,-500.0,0.00014999,2]
[422193751,1778677406000,-506.03337707,0.00014999,2]
[422193752,1778677406000,-500.0,0.00014999,2]
[422193744,1778677406000,-500.0,0.00014999,2]
[422193749,1778677406000,-500.0,0.00014999,2]
[422193745,1778677406000,-500.0,0.00014999,2]
[422193739,1778677406000,-500.0,0.00014999,2]
[422193754,1778677406000,-500.0,0.00014999,2]
[422193743,1778677406000,-500.0,0.00014999,2]
[422193741,1778677406000,-500.0,0.00014999,2]
[422193740,1778677406000,-500.0,0.00014999,2]
[422193737,1778677406000,-294.298777,0.00014999,2]
[422193738,1778677406000,-500.0,0.00014999,2]
[422193736,1778677406000,-155.0,0.00014999,2]
[422193734,1778677406000,-2000.0,0.0001499,2]
[422193735,1778677406000,-151.0,0.00014997,2]
[422193742,1778677406000,-500.0,0.00014999,2]
[422193755,1778677406000,-500.0,0.00014999,2]
[422193771,1778677406000,-466.3906625,0.00014999,2]
[422193757,1778677406000,-500.0,0.00014999,2]
[422193779,1778677406000,-167204.77116766,0.00015,2]
[422193778,1778677406000,-150.0,0.00015,2]
[422193777,1778677406000,-150.0,0.00015,2]
[422193776,1778677406000,-2021.72650477,0.00015,2]
[422193775,1778677406000,-984.0,0.00015,5]
[422193774,1778677406000,-989.0,0.00015,5]
[422193772,1778677406000,-300.0,0.00014999,2]
[422193773,1778677406000,-300.0,0.00014999,2]
[422193770,1778677406000,-500.0,0.00014999,2]
[422193769,1778677406000,-500.0,0.00014999,2]
[422193756,1778677406000,-633.20832037,0.00014999,2]
[422193768,1778677406000,-633.91091649,0.00014999,2]
[422193765,1778677406000,-500.0,0.00014999,2]
[422193766,1778677406000,-500.0,0.00014999,2]
[422193762,1778677406000,-280.15921479,0.00014999,2]
[422193763,1778677406000,-500.0,0.00014999,2]
[422193764,1778677406000,-255.14082647,0.00014999,2]
[422193761,1778677406000,-234.66857943,0.00014999,2]
[422193759,1778677406000,-500.0,0.00014999,2]
[422193760,1778677406000,-500.0,0.00014999,2]
[422193758,1778677406000,-500.0,0.00014999,2]
[422193767,1778677406000,-500.0,0.00014999,2]
[422193781,1778677439000,160.43392296,0.00014451,21]
[422193780,1778677439000,150.0,0.00014451,21]
[422193782,1778677441000,150.0,0.00014404,21]
[422193792,1778677546000,257.40949421,0.0002724,120]
[422193793,1778677564000,152.0,0.00012333,7]
[422193796,1778677567000,176.73,0.00010292,2]
[422193795,1778677567000,176.73,8.622e-05,2]
[422193794,1778677567000,176.73,6.952e-05,2]
[422193797,1778677568000,221.7160233,0.00013825,21]
[422193798,1778677618000,-214.74984867,0.00010699,2]
[422193799,1778677619000,-85.25015133,0.00010699,2]
[422193801,1778677619000,-29764.74984867,0.000107,2]
[422193800,1778677619000,-150.0,0.00010699,2]
[422193802,1778677623000,327.37525498,0.00013816,21]
[422193803,1778677636000,152.0,0.00012338,7]
[422193829,1778677833000,-500.0,0.00014,2]
[422193825,1778677833000,-150.0,0.00013987,2]
[422193831,1778677833000,-512.56,0.00014,2]
[422193826,1778677833000,-1200.0,0.00013998,2]
[422193823,1778677833000,-222.9,0.00013797,2]
[422193827,1778677833000,-300.0,0.00013999,2]
[422193824,1778677833000,-166.66,0.00013925,2]
[422193832,1778677833000,-300.0,0.00014,5]
[422193828,1778677833000,-500.0,0.00014,2]
[422193834,1778677833000,-166.66,0.00014152,2]
[422193833,1778677833000,-600.0,0.000141,5]
[422193835,1778677833000,-1000.0,0.000142,5]
[422193837,1778677833000,-1300.0,0.000143,5]
[422193839,1778677833000,-166.66,0.00014379,2]
[422193836,1778677833000,-150.0,0.000143,2]
[422193830,1778677833000,-500.0,0.00014,2]
[422193821,1778677833000,-2929.42,0.00013699,2]
[422193809,1778677833000,-176.73,0.00011962,2]
[422193820,1778677833000,-299.99,0.00013699,2]
[422193840,1778677833000,-1600.0,0.000144,5]
[422193804,1778677833000,-464.65754164,0.000107,2]
[422193805,1778677833000,-214.91342137,0.00010751,2]
[422193807,1778677833000,-150.0,0.00011556,2]
[422193806,1778677833000,-150.0,0.00011555,2]
[422193808,1778677833000,-150.0,0.00011556,2]
[422193813,1778677833000,-150.0,0.00013488,2]
[422193822,1778677833000,-166.66,0.00013699,2]
[422193810,1778677833000,-97.53731789,0.00013388,2]
[422193815,1778677833000,-186.21135876,0.00013488,2]
[422193812,1778677833000,-150.0,0.00013488,2]
[422193814,1778677833000,-150.0,0.00013488,2]
[422193818,1778677833000,-117.30695544,0.00013632,2]
[422193816,1778677833000,-154.29,0.00013576,2]
[422193817,1778677833000,-160.42,0.00013599,2]
[422193819,1778677833000,-59.42304456,0.00013632,2]
[422193811,1778677833000,-180.64097874,0.00013388,2]
[422193838,1778677833000,-700.0,0.000143,2]
[422193870,1778677833000,-500.0,0.00014799,2]
[422193843,1778677833000,-150.0,0.00014451,2]
[422193880,1778677833000,-150.0,0.000148,2]
[422193892,1778677833000,-350.0,0.00014891,2]
[422193882,1778677833000,-150.0,0.000148,2]
[422193841,1778677833000,-6597.7989617,0.00014413,2]
[422193885,1778677833000,-300.0,0.000148,5]
[422193899,1778677833000,-54813.79581968,0.000149,2]
[422193888,1778677833000,-166.66,0.00014832,2]
[422193895,1778677833000,-5000.0,0.000149,2]
[422193904,1778677833000,-32275.8243,0.000149,2]
[422193906,1778677833000,-6793.3795,0.000149,2]
[422193908,1778677833000,-9151.01557188,0.000149,2]
[422193919,1778677833000,-18693.59605216,0.000149,2]
[422193910,1778677833000,-1008.0,0.000149,2]
[422193912,1778677833000,-1463.94493146,0.000149,2]
[422193917,1778677833000,-1663.04519686,0.000149,2]
[422193915,1778677833000,-40156.71954458,0.000149,2]
[422193902,1778677833000,-680.0,0.000149,5]
[422193890,1778677833000,-588.033,0.0001485,2]
[422193897,1778677833000,-5145.9548,0.000149,2]
[422193875,1778677833000,-150.0,0.000148,2]
[422193846,1778677833000,-1987.73,0.00014497,2]
[422193844,1778677833000,-150.0,0.00014487,2]
[422193877,1778677833000,-150.0,0.000148,2]
[422193848,1778677833000,-623.0,0.00014511,2]
[422193850,1778677833000,-166.66,0.00014605,2]
[422193847,1778677833000,-300.0,0.000145,5]
[422193849,1778677833000,-300.0,0.000146,5]
[422193851,1778677833000,-7186.82331851,0.000147,2]
[422193842,1778677833000,-150.0,0.00014451,2]
[422193857,1778677833000,-500.0,0.00014722,2]
[422193853,1778677833000,-807.73,0.000147,2]
[422193866,1778677833000,-500.0,0.00014799,2]
[422193855,1778677833000,-300.0,0.000147,5]
[422193859,1778677833000,-1885.752,0.00014722,2]
[422193872,1778677833000,-150.0,0.000148,2]
[422193862,1778677833000,-188.004,0.00014722,2]
[422193864,1778677833000,-167.0,0.00014785,2]
[422193938,1778677834000,-500.0,0.00014999,2]
[422193929,1778677834000,-184.958628,0.00014981,2]
[422193934,1778677834000,-233.62423754,0.00014986,2]
[422193936,1778677834000,-226.47346376,0.00014999,2]
[422193933,1778677834000,-164.42386993,0.00014986,2]
[422193930,1778677834000,-184.958628,0.00014981,2]
[422193925,1778677834000,-588.03301,0.0001495,2]
[422193927,1778677834000,-621.80239492,0.00014958,2]
[422193924,1778677834000,-178.31621023,0.000149,2]
[422193922,1778677834000,-191.62008976,0.000149,2]
[422193921,1778677834000,-9101.593,0.000149,2]
[422193939,1778677834000,-500.0,0.00014999,2]
[422193928,1778677834000,-151.0,0.00014981,2]
[422193931,1778677834000,-184.958628,0.00014981,2]
[422193941,1778677834000,-500.0,0.00014999,2]
[422193932,1778677834000,-184.958628,0.00014981,2]
[422193951,1778677834000,-103622.62685208,0.00015,2]
[422193949,1778677834000,-53750.22291716,0.00015,2]
[422193948,1778677834000,-150.0,0.00015,2]
[422193947,1778677834000,-150.0,0.00015,2]
[422193946,1778677834000,-1897.0,0.00015,5]
[422193945,1778677834000,-300.0,0.00014999,2]
[422193937,1778677834000,-500.0,0.00014999,2]
[422193942,1778677834000,-643.73764154,0.00014999,2]
[422193935,1778677834000,-500.0,0.00014999,2]
[422193950,1778677834000,-63028.50963381,0.00015,2]
[422193944,1778677834000,-500.0,0.00014999,2]
[422193952,1778677834000,-8644.86836957,0.00015,2]
[422193943,1778677834000,-178.59857853,0.00014999,2]
[422193940,1778677834000,-196.11145036,0.00014999,2]
[422193953,1778677836000,-0.44229226,0.00015,2]
[422193954,1778677836000,-250.0,0.00015,2]
[422193957,1778677836000,-464.72178409,0.00015,2]
[422193955,1778677836000,-0.52062403,0.00015,2]
[422193958,1778677836000,-2287.51677326,0.00015,2]
[422193959,1778677836000,-303.72702952,0.00015,2]
[422193960,1778677836000,-1081.52417762,0.00015,2]
[422193961,1778677836000,-673.97872682,0.00015,2]
[422193956,1778677836000,-1981.08146221,0.00015,2]
[422193967,1778677837000,-1154.7693352,0.00015,2]
[422193966,1778677837000,-290.570001,0.00015,2]
[422193965,1778677837000,-245946.72461151,0.00015,2]
[422193964,1778677837000,-10093726.63200763,0.00015,2]
[422193962,1778677837000,-2046668.91921453,0.00015,2]
[422193963,1778677837000,-345.5,0.00015,2]
[422193968,1778677838000,-1887.80242846,0.00015,2]
[422193993,1778677839000,-8011.23226826,0.00015,2]
[422193994,1778677839000,-1198.20846186,0.00015,2]
[422193995,1778677840000,-14495.04845492,0.00015,2]
[422194010,1778677843000,-461.66165272,0.000149,2]
[422194011,1778677843000,-598.87020583,0.000149,2]
[422194009,1778677843000,-395.0885,0.000148,2]
[422194039,1778677845000,-359.02452,0.000149,2]
[422194042,1778677846000,-590.396067,0.000149,2]
[422194040,1778677846000,-18.27715709,0.000149,2]
[422194049,1778678142000,238.78041857,0.00027397,120]
[422194050,1778678143000,153.0,0.00027397,120]
[422194051,1778678163000,152.0,0.00012332,7]
[422194052,1778678164000,163.68762748,0.00013846,21]
[422194060,1778678344000,163.68762749,0.00013827,21]
[422194063,1778678405000,425.34,7.002e-05,2]
[422194064,1778678405000,425.34,7.356e-05,2]
[422194065,1778678405000,425.34,7.71e-05,2]
[422194067,1778678405000,425.34,8.418e-05,2]
[422194066,1778678405000,425.34,8.064e-05,2]
[422194068,1778678405000,425.34,8.772e-05,2]
[422194071,1778678406000,425.34,9.834e-05,2]
[422194070,1778678406000,425.34,9.48e-05,2]
[422194069,1778678406000,425.34,9.126e-05,2]
[422194072,1778678523000,654.75050996,0.00013806,21]
[422194073,1778678798000,-216.1393128,0.00010188,2]
[422194089,1778679031000,-425.34,0.00010542,2]
[422194088,1778679031000,-209.2006872,0.00010188,2]
[422194090,1778679031000,-425.34,0.00010896,2]
[422194091,1778679031000,-208.27114069,0.00010981,2]
[422194093,1778679031000,-337.48551351,0.00011207,2]
[422194092,1778679031000,-162.51448649,0.00011207,2]
[422194094,1778679031000,-425.34,0.0001125,2]
[422194155,1778679032000,-277.0,0.00014787,2]
[422194127,1778679032000,-250.0,0.00014,2]
[422194124,1778679032000,-150.0,0.00013937,2]
[422194125,1778679032000,-150.0,0.00013937,2]
[422194123,1778679032000,-666.643,0.00013904,2]
[422194126,1778679032000,-166.66,0.00013973,2]
[422194128,1778679032000,-150.0,0.00014087,2]
[422194129,1778679032000,-277.0,0.00014099,2]
[422194130,1778679032000,-166.66,0.0001411,2]
[422194132,1778679032000,-150.0,0.00014237,2]
[422194131,1778679032000,-300.0,0.000142,5]
[422194134,1778679032000,-166.66,0.00014247,2]
[422194133,1778679032000,-150.0,0.00014237,2]
[422194138,1778679032000,-166.66,0.00014384,2]
[422194135,1778679032000,-700.0,0.000143,5]
[422194141,1778679032000,-277.0,0.00014443,2]
[422194140,1778679032000,-1100.0,0.000144,5]
[422194137,1778679032000,-165.85,0.00014327,2]
[422194142,1778679032000,-150.0,0.00014445,2]
[422194143,1778679032000,-214.91342137,0.00014487,2]
[422194139,1778679032000,-150.0,0.00014387,2]
[422194144,1778679032000,-1500.0,0.000145,5]
[422194152,1778679032000,-150.0,0.00014687,2]
[422194150,1778679032000,-150.0,0.00014626,2]
[422194122,1778679032000,-500.0,0.00013904,2]
[422194136,1778679032000,-350.0,0.00014304,2]
[422194121,1778679032000,-500.0,0.00013904,2]